bitfinex/quotes_BTCUSD_20241203
["timestamp","ask_amount","ask_price","bid_price","bid_amount"]
[1733237299634,0.20945,95035.0,95017.0,0.10471259]
[1733237299635,0.210441,95039.0,95020.0,0.023]
[1733237299864,0.210449,95035.0,95022.0,0.023]
[1733237300060,0.210441,95039.0,95023.0,0.10471259]
[1733237300282,0.210397,95058.0,95024.0,0.023]
[1733237300498,0.002328,95057.0,95026.0,0.023]
[1733237300715,0.210437,95041.0,95028.0,0.023]
[1733237300930,0.210427,95045.0,95030.0,0.023]
[1733237301154,0.00232784,95059.0,95031.0,0.10471259]
[1733237301374,0.210355,95078.0,95038.0,0.023]
[1733237301590,0.21268242,95078.0,95040.0,0.023]
[1733237301797,0.21268242,95078.0,95042.0,0.023]
[1733237301998,0.210358,95076.0,95044.0,0.023]
[1733237302208,0.35459092,95060.0,95045.0,0.10471259]
[1733237302427,0.210397,95058.0,95032.0,0.0801]
[1733237302639,0.210424,95046.0,95033.0,0.12771259]
[1733237302861,0.210446,95037.0,95033.0,0.10471259]
[1733237303082,0.00232799,95036.0,95033.0,0.00058785]
[1733237303288,0.210436,95041.0,95034.0,0.10471259]
[1733237303497,0.210423,95047.0,95034.0,0.10471259]
[1733237303720,0.15232786,95062.0,95034.0,0.10471259]
[1733237303948,0.0008629,95035.0,95034.0,0.10471259]
[1733237304408,0.0008629,95035.0,95034.0,0.12771259]
[1733237304877,0.2113109,95035.0,95033.0,0.00658785]
[1733237305117,0.0008629,95035.0,95034.0,0.10471259]
[1733237306377,0.0008629,95035.0,95034.0,0.12771259]
[1733237306585,0.0018629,95035.0,95034.0,0.13471259]
[1733237306870,0.2123109,95035.0,95034.0,0.007]
[1733237307077,0.2113109,95035.0,95033.0,0.00058785]
[1733237307335,0.2123109,95035.0,95034.0,0.007]
[1733237308077,0.15,95034.0,95033.0,0.00058785]
[1733237308322,0.2113109,95035.0,95033.0,0.00058785]
[1733237308551,0.2113109,95035.0,95034.0,0.10471259]
[1733237308552,0.0008629,95035.0,95034.0,0.10471259]
[1733237309486,0.0008629,95035.0,95034.0,0.12771259]
[1733237309986,0.0018629,95035.0,95034.0,0.13471259]
[1733237310451,0.0018629,95035.0,95034.0,0.12771259]
[1733237310452,0.0008629,95035.0,95034.0,0.12771259]
[1733237310920,0.0008629,95035.0,95034.0,0.13371259]
[1733237311602,0.0008629,95035.0,95034.0,0.12771259]
[1733237311884,0.0018629,95035.0,95034.0,0.13571259]
[1733237312104,0.0028629,95035.0,95034.0,0.14471259]
[1733237313685,0.0008623,95132.0,95034.0,0.14471259]
[1733237313686,0.2,95088.0,95038.0,0.023]
[1733237313911,0.00232723,95087.0,95056.0,0.023]
[1733237314123,0.00232723,95087.0,95057.0,0.10471259]
[1733237314345,0.2,95084.0,95052.0,0.18421897]
[1733237314579,0.210408,95053.0,95052.0,0.10471259]
[1733237315008,0.210408,95053.0,95052.0,0.28896873]
[1733237315234,0.210408,95053.0,95052.0,0.10471259]
[1733237315455,0.210108,95053.0,95052.0,0.28896873]
[1733237315902,0.210108,95053.0,95052.0,0.14171259]
[1733237315903,0.001,95053.0,95052.0,0.14171259]
[1733237316131,0.001,95053.0,95052.0,0.37217935]
[1733237316355,0.001,95053.0,95052.0,0.14171259]
[1733237316581,0.001,95053.0,95052.0,0.14471259]
[1733237317674,0.001,95053.0,95052.0,0.17681634]
[1733237317926,0.001,95053.0,95052.0,0.12171259]
[1733237318156,0.001,95053.0,95052.0,0.14471259]
[1733237318605,0.001,95053.0,95052.0,0.17681154]
[1733237319043,0.001,95053.0,95052.0,0.87681154]
[1733237319496,0.001,95053.0,95052.0,1.28500172]
[1733237319712,0.001,95053.0,95052.0,0.17681154]
[1733237319938,0.001,95053.0,95052.0,0.24004154]
[1733237320432,0.001,95053.0,95052.0,0.31624154]
[1733237320646,0.001,95053.0,95052.0,1.01624154]
[1733237320871,0.210351,95079.0,95078.0,0.005]
[1733237321110,0.210342,95083.0,95078.0,0.10971259]
[1733237321322,0.210333,95087.0,95082.0,0.18417261]
[1733237321555,0.210304,95100.0,95083.0,0.2888852]
[1733237321797,0.210304,95100.0,95081.0,0.18417261]
[1733237321798,0.21034,95084.0,95081.0,0.18417261]
[1733237322022,0.002327,95083.0,95073.0,0.27624501]
[1733237322245,0.215,95102.0,95081.0,0.00058785]
[1733237322246,0.21034,95084.0,95081.0,0.00058785]
[1733237322484,0.21034,95084.0,95083.0,0.23019142]
[1733237322918,0.21034,95084.0,95081.0,0.00058785]
[1733237322919,0.42300685,95084.0,95081.0,0.00058785]
[1733237323165,0.210344,95082.0,95081.0,0.00058785]
[1733237324237,0.21034,95084.0,95081.0,0.00958785]
[1733237324453,0.001,95082.0,95081.0,0.00958785]
[1733237324669,0.001,95082.0,95081.0,0.00058785]
[1733237324919,0.001,95082.0,95081.0,0.00958785]
[1733237325341,0.20784,95084.0,95081.0,0.00058785]
[1733237325574,0.20784,95084.0,95082.0,0.10471259]
[1733237325781,0.20784,95084.0,95081.0,0.00058785]
[1733237326002,0.210344,95082.0,95081.0,0.00058785]
[1733237326658,0.360344,95082.0,95081.0,0.00058785]
[1733237326886,0.66505659,95082.0,95081.0,0.00058785]
[1733237327101,0.98825659,95082.0,95081.0,0.00058785]
[1733237327319,0.98825659,95082.0,95081.0,0.00958785]
[1733237327979,0.59325659,95082.0,95081.0,0.00958785]
[1733237328438,0.59425659,95082.0,95081.0,0.00958785]
[1733237328654,0.406944,95082.0,95081.0,0.00958785]
[1733237328877,0.361344,95082.0,95081.0,0.00958785]
[1733237329305,0.361344,95082.0,95081.0,0.00100095]
[1733237329552,0.360402,95056.0,95054.0,0.18425385]
[1733237329769,0.66011459,95056.0,95055.0,0.00058845]
[1733237329986,0.86011459,95056.0,95055.0,0.00058845]
[1733237331342,0.86111459,95056.0,95055.0,4.5e-07]
[1733237331579,0.360448,95035.0,95034.0,2.0017242]
[1733237331794,0.360448,95035.0,95034.0,2.00231312]
[1733237332015,0.360448,95035.0,95034.0,2.00258865]
[1733237332250,0.555448,95035.0,95034.0,2.00258865]
[1733237332808,0.70756059,95035.0,95034.0,2.00258865]
[1733237333023,0.98946059,95035.0,95034.0,2.00258865]
[1733237333236,0.98946059,95035.0,95034.0,1.89736365]
[1733237333491,0.98946059,95035.0,95034.0,1.76926365]
[1733237333700,0.755479,95021.0,95020.0,4e-07]
[1733237333908,0.86019159,95021.0,95020.0,0.00058991]
[1733237334146,0.86019159,95021.0,95020.0,9.1e-07]
[1733237335819,0.86119159,95021.0,95020.0,9.1e-07]
[1733237336313,0.86619159,95021.0,95020.0,9.1e-07]
[1733237336750,0.86619159,95021.0,94971.0,0.005]
[1733237336751,0.15,95007.0,94971.0,0.005]
[1733237336977,0.210562,94984.0,94972.0,0.11157604]
[1733237337191,0.210559,94986.0,94972.0,0.11157604]
[1733237337454,0.15,94993.0,94981.0,0.005]
[1733237337690,0.421093,94991.0,94986.0,0.005]
[1733237338143,0.22977674,95010.0,94987.0,0.10471259]
[1733237338357,0.009,95021.0,94995.0,0.005]
[1733237338628,0.210529,94999.0,94996.0,0.10471259]
[1733237338815,0.22977674,95010.0,94988.0,0.075]
[1733237339022,0.22977674,95000.0,94989.0,0.10471259]
[1733237339246,0.211546,94991.0,94989.0,0.10471259]
[1733237339457,0.22977674,95030.0,94990.0,0.005]
[1733237339669,0.22977674,95020.0,94996.0,0.005]
[1733237339886,0.001,94999.0,94996.0,0.009]
[1733237340092,0.001,94999.0,94997.0,0.10471259]
[1733237340296,0.001,94999.0,94998.0,0.005]
[1733237340733,0.001,94999.0,94996.0,0.004]
[1733237340734,0.001,94999.0,94996.0,0.009]
[1733237340945,0.001,94999.0,94998.0,0.10971259]
[1733237341167,0.001,94999.0,94998.0,0.11157563]
[1733237341377,0.00232866,95039.0,95009.0,0.0455]
[1733237341594,0.00232866,95039.0,95010.0,0.10471259]
[1733237341822,0.210476,95023.0,95014.0,0.005]
[1733237342062,0.210476,95023.0,95015.0,0.10471259]
[1733237342306,0.22977674,95050.0,95015.0,0.10471259]
[1733237342307,0.210413,95051.0,95021.0,0.005]
[1733237342611,0.210413,95051.0,95011.0,0.2105]
[1733237342612,0.210461,95030.0,95024.0,0.005]
[1733237342852,0.210451,95034.0,95025.0,0.10471259]
[1733237343136,0.22977674,95050.0,95025.0,0.10471259]
[1733237343357,0.21038,95067.0,95032.0,0.005]
[1733237343618,0.210421,95048.0,95033.0,0.10471259]
[1733237344036,0.210384,95064.0,95033.0,0.10471259]
[1733237344037,0.210386,95063.0,95033.0,0.10471259]
[1733237344278,0.210423,95047.0,95036.0,0.005]
[1733237344483,0.210402,95057.0,95037.0,0.10471259]
[1733237344687,0.210359,95076.0,95044.0,0.005]
[1733237344881,0.21268751,95075.0,95045.0,0.10471259]
[1733237344998,0.00232751,95075.0,95049.0,0.0452]
[1733237345215,0.210403,95056.0,95050.0,0.10471259]
[1733237345685,0.210394,95060.0,95050.0,0.10471259]
[1733237345895,0.210404,95055.0,95050.0,0.10471259]
[1733237346104,0.00332751,95075.0,95050.0,0.10471259]
[1733237346310,0.210409,95053.0,95050.0,0.10471259]
[1733237346597,0.210397,95058.0,95050.0,0.10471259]
[1733237346821,0.15,95059.0,95050.0,0.10471259]
[1733237346822,0.001,95056.0,95050.0,0.11071259]
[1733237347230,0.210404,95056.0,95050.0,0.10471259]
[1733237347427,0.210412,95052.0,95050.0,0.10471259]
[1733237347643,0.210412,95052.0,95050.0,0.11171259]
[1733237347844,0.001,95053.0,95050.0,0.11171259]
[1733237347968,0.001,95053.0,95050.0,0.12071259]
[1733237348177,0.001,95053.0,95050.0,0.11171259]
[1733237348578,0.001,95053.0,95052.0,0.005]
[1733237348778,0.001,95053.0,95052.0,0.10971259]
[1733237349609,0.210403,95056.0,95055.0,0.005]
[1733237349815,0.210403,95056.0,95050.0,0.007]
[1733237349816,0.210409,95053.0,95050.0,0.007]
[1733237350025,0.360413,95051.0,95050.0,0.007]
[1733237350505,0.15,95041.0,95032.0,0.0488]
[1733237350725,0.36045,95034.0,95033.0,0.10530691]
[1733237350928,0.15,95034.0,95033.0,0.10530691]
[1733237351337,0.210437,95041.0,95033.0,0.10530691]
[1733237351549,0.23063884,95060.0,95033.0,0.10530691]
[1733237351550,0.361413,95051.0,95050.0,0.009]
[1733237351969,0.210397,95058.0,95033.0,0.10530691]
[1733237352189,0.15,95054.0,95034.0,0.10471259]
[1733237352412,0.210444,95037.0,95034.0,0.10471259]
[1733237352628,0.15,95052.0,95033.0,0.00059432]
[1733237352846,0.210432,95043.0,95034.0,0.10471259]
[1733237353063,0.0008621,95060.0,95034.0,2.10471259]
[1733237353064,0.15,95042.0,95034.0,2.10471259]
[1733237353295,0.210415,95050.0,95039.0,0.005]
[1733237353514,0.210415,95050.0,95040.0,0.10471259]
[1733237353973,0.210415,95050.0,95041.0,0.10471259]
[1733237354239,0.001,95051.0,95041.0,0.10471259]
[1733237354240,0.001,95051.0,95042.0,0.08006215]
[1733237354443,0.2112561,95060.0,95043.0,0.10471259]
[1733237354860,0.210395,95059.0,95043.0,0.10471259]
[1733237355066,0.210395,95059.0,95044.0,0.00186202]
[1733237355294,0.210405,95055.0,95045.0,0.10471259]
[1733237355508,0.210397,95058.0,95045.0,0.10471259]
[1733237355721,0.0008621,95060.0,95046.0,0.00186197]
[1733237355937,0.15,95058.0,95047.0,0.10471259]
[1733237356160,0.2104,95057.0,95047.0,0.10471259]
[1733237356375,0.21041,95053.0,95047.0,0.10471259]
[1733237356621,0.15,95058.0,95047.0,0.10471259]
[1733237356847,0.2104,95057.0,95047.0,0.10471259]
[1733237357051,0.15,95059.0,95047.0,0.10971259]
[1733237357251,0.210397,95058.0,95047.0,0.10971259]
[1733237357463,0.210407,95054.0,95047.0,0.10971259]
[1733237357679,0.210407,95054.0,95047.0,0.10471259]
[1733237358147,0.210397,95058.0,95047.0,0.10971259]
[1733237358372,0.21041,95053.0,95047.0,0.10971259]
[1733237358576,0.21041,95053.0,95047.0,0.11871259]
[1733237358800,0.15,95059.0,95047.0,0.10971259]
[1733237359023,0.210415,95051.0,95047.0,0.014]
[1733237359243,0.15232768,95050.0,95047.0,0.014]
[1733237359455,0.210431,95043.0,95042.0,0.0782]
[1733237361419,0.360431,95043.0,95042.0,0.004]
[1733237362083,0.361431,95043.0,95042.0,0.013]
[1733237362547,0.360431,95043.0,95042.0,0.004]
[1733237362760,0.361431,95043.0,95042.0,0.013]
[1733237363016,0.361431,95043.0,95042.0,0.009]
[1733237363231,0.361431,95043.0,95042.0,0.013]
[1733237363648,0.360431,95043.0,95042.0,0.004]
[1733237363866,0.15,95042.0,95034.0,1.90143679]
[1733237364083,0.210447,95036.0,95034.0,1.90143679]
[1733237364531,0.15,95042.0,95034.0,1.90143679]
[1733237364756,0.0008621,95054.0,95036.0,0.210446]
[1733237364967,0.0008621,95054.0,95037.0,0.10471259]
[1733237365183,0.420818,95053.0,95042.0,0.009]
[1733237365398,0.420818,95053.0,95034.0,1.90143679]
[1733237365399,0.210411,95052.0,95043.0,0.10471259]
[1733237365654,0.420822,95052.0,95043.0,0.10471259]
[1733237366114,0.0008621,95054.0,95034.0,1.91043679]
[1733237366331,0.0008621,95054.0,95034.0,1.90143679]
[1733237366332,0.210443,95038.0,95034.0,1.90143679]
[1733237366545,0.420886,95038.0,95034.0,1.90143679]
[1733237366753,0.210446,95036.0,95034.0,1.90143679]
[1733237367175,0.210446,95036.0,95034.0,1.90443679]
[1733237367604,0.210446,95036.0,95034.0,1.90143679]
[1733237368026,0.210446,95036.0,95034.0,1.90643679]
[1733237368027,0.15,95035.0,95034.0,1.90643679]
[1733237368471,0.15,95035.0,95034.0,1.90143679]
[1733237368711,0.15232821,95035.0,95034.0,1.90143679]
[1733237368920,0.25471259,95035.0,95034.0,1.91543679]
[1733237369635,0.25471259,95035.0,95034.0,1.90643679]
[1733237370090,0.25471259,95035.0,95034.0,1.91043679]
[1733237370290,0.25471259,95035.0,95034.0,1.90143679]
[1733237370718,0.25471259,95035.0,95034.0,1.91243679]
[1733237371156,0.25471259,95035.0,95034.0,1.90843679]
[1733237371571,0.25671259,95035.0,95034.0,1.90843679]
[1733237371994,0.45671259,95035.0,95034.0,1.90843679]
[1733237372205,0.65671259,95035.0,95034.0,1.77420063]
[1733237372861,0.65671259,95035.0,95034.0,1.73211063]
[1733237373072,0.65671259,95035.0,95034.0,1.66897563]
[1733237373283,0.65471259,95035.0,95034.0,1.66897563]
[1733237373493,0.65871259,95035.0,95034.0,1.66197563]
[1733237373717,0.65871259,95035.0,95034.0,1.66397563]
[1733237373932,0.65871259,95035.0,95034.0,1.55875063]
[1733237374154,0.65471259,95035.0,95034.0,1.55875063]
[1733237374382,0.65687896,95035.0,95034.0,1.55875063]
[1733237374596,0.75356442,95035.0,95034.0,1.51666063]
[1733237374841,0.65687896,95035.0,95034.0,1.45352563]
[1733237375497,0.66096978,95035.0,95034.0,1.42655591]
[1733237375734,0.66096978,95035.0,95034.0,1.23987237]
[1733237375950,1.20856978,95035.0,95034.0,1.23787237]
[1733237376404,1.20447896,95035.0,95034.0,1.23787237]
[1733237376611,1.28736579,95035.0,95034.0,1.19578237]
[1733237376858,1.29436579,95035.0,95034.0,1.13364737]
[1733237377080,0.11871259,95035.0,95034.0,1.13464737]
[1733237377283,0.007,95035.0,95034.0,1.13364737]
[1733237378163,0.016,95035.0,95034.0,1.13464737]
[1733237379451,0.420888,95037.0,95034.0,1.13264737]
[1733237379846,0.001,95035.0,95034.0,1.13664737]
[1733237380260,0.001,95035.0,95034.0,1.14164737]
[1733237380477,0.10471259,95035.0,95034.0,1.13264737]
[1733237380792,0.25471259,95035.0,95034.0,1.13564737]
[1733237380972,0.25471259,95035.0,95034.0,1.14464737]
[1733237381632,0.25471259,95035.0,95034.0,1.14164737]
[1733237382072,0.25471259,95035.0,95034.0,1.13264737]
[1733237382489,0.25571259,95035.0,95034.0,1.14164737]
[1733237383116,0.25571259,95035.0,95034.0,1.14464737]
[1733237383537,1.25571259,95035.0,95034.0,1.14464737]
[1733237384997,1.45571259,95035.0,95034.0,1.14464737]
[1733237385836,1.151,95035.0,95034.0,1.14464737]
[1733237386048,1.15,95035.0,95034.0,1.13564737]
[1733237386285,1.001,95035.0,95034.0,1.14464737]
[1733237386509,1.001,95035.0,95034.0,1.26384737]
[1733237386729,1.0018621,95035.0,95034.0,1.26384737]
[1733237386946,1.0018621,95035.0,95034.0,1.43378996]
[1733237387167,1.0018621,95035.0,95034.0,1.37055996]
[1733237387377,1.0018621,95035.0,95034.0,1.36855996]
[1733237387606,1.0008621,95035.0,95034.0,1.35955996]
[1733237388039,1.0018621,95035.0,95034.0,1.26384737]
[1733237388260,1.0018621,95035.0,95034.0,1.26784737]
[1733237388261,1.0028621,95035.0,95034.0,1.26784737]
[1733237390119,1.0028621,95035.0,95034.0,1.19084737]
[1733237390380,1.25757469,95035.0,95034.0,1.14564737]
[1733237391119,1.25657469,95035.0,95034.0,1.14164737]
[1733237391393,1.25557469,95035.0,95034.0,1.13664737]
[1733237391593,1.0008621,95035.0,95034.0,1.14564737]
[1733237391836,1.0008621,95035.0,95034.0,1.22554737]
[1733237392074,1.0008621,95035.0,95034.0,1.27174737]
[1733237392309,1.0008621,95035.0,95034.0,1.37645996]
[1733237393025,1.0008621,95035.0,95034.0,1.36345996]
[1733237393536,1.0008621,95035.0,95034.0,1.60399889]
[1733237393820,1.0008621,95035.0,95034.0,1.59499889]
[1733237394059,1.0008621,95035.0,95034.0,1.77825785]
[1733237394060,0.7446621,95035.0,95034.0,1.77825785]
[1733237394305,0.0008621,95054.0,95052.0,0.210409]
[1733237394570,0.0008621,95054.0,95053.0,0.10471259]
[1733237395789,0.210275,95114.0,95083.0,0.210342]
[1733237396041,0.22128611,95106.0,95083.0,0.43625459]
[1733237396314,0.01099411,95106.0,95083.0,0.43625459]
[1733237396768,0.22977674,95110.0,95083.0,0.43625459]
[1733237397013,0.0008623,95112.0,95083.0,0.43625459]
[1733237397014,0.0008623,95112.0,95088.0,0.4]
[1733237397249,0.0008623,95112.0,95111.0,0.21028]
[1733237397470,0.0008623,95112.0,95111.0,0.39079259]
[1733237398349,0.27634883,95153.0,95111.0,0.18051259]
[1733237398562,0.5476,95199.0,95111.0,0.18051259]
[1733237398563,0.10471259,95152.0,95112.0,0.10471259]
[1733237398781,0.210217,95140.0,95116.0,0.210267]
[1733237398996,0.15,95142.0,95120.0,0.210259]
[1733237399206,0.15,95142.0,95124.0,0.18326613]
[1733237399430,0.15,95142.0,95122.0,0.210256]
[1733237399431,0.1477,95142.0,95126.0,0.18326613]
[1733237399642,0.1477,95142.0,95123.0,0.210252]
[1733237399643,0.01098584,95161.0,95134.0,0.210229]
[1733237399863,0.01098584,95161.0,95143.0,0.210209]
[1733237400113,0.01098584,95161.0,95144.0,0.18491259]
[1733237400565,0.2109912,95180.0,95156.0,0.21018]
[1733237400803,0.2109912,95180.0,95157.0,0.10657244]
[1733237401079,0.2109912,95180.0,95157.0,0.10471259]
[1733237401299,0.002,95161.0,95157.0,0.10471259]
[1733237401538,0.002,95161.0,95159.0,0.22908085]
[1733237401757,0.002,95161.0,95144.0,0.0842]
[1733237401758,0.0008622,95180.0,95160.0,0.10471259]
[1733237402014,0.0008622,95180.0,95163.0,0.18251414]
[1733237402221,0.210135,95177.0,95164.0,0.10471259]
[1733237402683,0.210135,95177.0,95163.0,0.18251414]
[1733237402684,0.0008622,95180.0,95163.0,0.18251414]
[1733237402904,0.210158,95167.0,95162.0,0.18251414]
[1733237403123,0.0008622,95180.0,95162.0,0.18251414]
[1733237403339,0.03,95174.0,95162.0,0.18251414]
[1733237403552,0.210143,95173.0,95162.0,0.18251414]
[1733237403766,0.03,95174.0,95162.0,0.18251414]
[1733237404009,0.03,95174.0,95163.0,0.10657245]
[1733237404248,0.001,95167.0,95163.0,0.10471259]
[1733237404927,0.001,95167.0,95162.0,0.014]
[1733237404928,0.210159,95166.0,95162.0,0.005]
[1733237405150,0.420318,95166.0,95162.0,0.005]
[1733237405386,0.21015,95170.0,95163.0,0.009]
[1733237405606,0.210154,95168.0,95159.0,0.22967517]
[1733237405831,0.210167,95163.0,95159.0,0.22967517]
[1733237406287,0.210167,95162.0,95159.0,0.22967517]
[1733237406510,0.420335,95162.0,95159.0,0.22967517]
[1733237406959,0.360172,95160.0,95159.0,0.22967517]
[1733237407175,0.31488459,95160.0,95159.0,0.22967517]
[1733237407392,0.360172,95160.0,95159.0,0.22967517]
[1733237407869,0.210146,95172.0,95159.0,0.22967517]
[1733237408110,0.03,95174.0,95166.0,0.210158]
[1733237408324,0.03,95174.0,95167.0,0.10471259]
[1733237408768,0.03,95174.0,95159.0,0.00759432]
[1733237408769,0.03,95174.0,95159.0,0.19122477]
[1733237408986,0.03,95174.0,95160.0,0.18163045]
[1733237408987,0.210166,95163.0,95160.0,0.18163045]
[1733237409225,0.210166,95163.0,95161.0,0.41052981]
[1733237409442,0.03,95174.0,95161.0,0.41052981]
[1733237409443,0.03,95174.0,95162.0,0.18144896]
[1733237409655,0.03,95174.0,95159.0,0.00059432]
[1733237409656,0.03,95174.0,95163.0,0.10657222]
[1733237409871,0.03,95174.0,95168.0,0.18126929]
[1733237410079,0.210099,95193.0,95168.0,0.18126929]
[1733237410306,0.50809578,95463.0,95168.0,0.18126929]
[1733237410307,0.0805,95319.0,95198.0,0.2]
[1733237410523,0.50809578,95465.0,95351.0,0.2]
[1733237410524,0.2455,95421.0,95351.0,0.2]
[1733237410748,0.10471259,95399.0,95381.0,0.2]
[1733237410965,0.10471259,95399.0,95388.0,0.2]
[1733237411183,0.10471259,95399.0,95398.0,0.2]
[1733237411421,0.209511,95461.0,95404.0,0.2]
[1733237411653,0.04678991,95500.0,95421.0,0.2]
[1733237411874,0.04678991,95500.0,95421.0,0.871]
[1733237411875,0.209436,95495.0,95421.0,0.871]
[1733237412117,0.00974029,95453.0,95452.0,0.609529]
[1733237412335,0.00974029,95453.0,95449.0,0.209535]
[1733237412336,0.04678991,95500.0,95498.0,0.17403486]
[1733237412546,0.04678991,95500.0,95499.0,0.1478437]
[1733237412766,0.1515025,95500.0,95499.0,0.34397213]
[1733237412993,0.002,95549.0,95518.0,0.13454613]
[1733237413212,0.002,95549.0,95518.0,0.2]
[1733237413433,0.002,95549.0,95511.0,0.00185265]
[1733237413650,0.002,95549.0,95512.0,0.00185279]
[1733237413651,0.02081101,95526.0,95512.0,0.00185279]
[1733237413865,0.02081101,95526.0,95509.0,0.2]
[1733237413866,0.02081101,95526.0,95518.0,0.30471259]
[1733237414077,0.02081101,95526.0,95518.0,0.51409659]
[1733237414318,0.02081101,95526.0,95518.0,0.30471259]
[1733237414534,0.002,95549.0,95528.0,0.2]
[1733237414964,0.002,95549.0,95510.0,0.209402]
[1733237414965,0.01627718,95529.0,95522.0,0.209374]
[1733237415178,0.01627718,95529.0,95519.0,0.2]
[1733237415387,0.002,95549.0,95538.0,0.2]
[1733237415846,0.002,95549.0,95538.0,0.00059432]
[1733237416083,0.002,95549.0,95538.0,0.30530691]
[1733237416296,0.002,95549.0,95548.0,0.2]
[1733237416510,0.002,95549.0,95548.0,0.30471259]
[1733237417843,0.37887057,95558.0,95548.0,0.30471259]
[1733237418051,0.025,95558.0,95557.0,0.2]
[1733237418266,0.025,95558.0,95557.0,0.30471259]
[1733237418688,0.025,95558.0,95547.0,0.2]
[1733237418893,0.35387057,95548.0,95544.0,0.2]
[1733237419103,0.35387057,95548.0,95538.0,0.00059432]
[1733237419104,0.10471259,95547.0,95538.0,0.00059432]
[1733237419314,0.209325,95545.0,95538.0,0.00059432]
[1733237419538,0.418658,95543.0,95538.0,0.00059432]
[1733237419729,0.25471259,95542.0,95513.0,0.138868]
[1733237419952,0.25471259,95542.0,95494.0,0.209435]
[1733237419953,0.15,95539.0,95521.0,0.138868]
[1733237420169,0.15,95539.0,95489.0,0.2]
[1733237420170,0.35387057,95540.0,95539.0,0.138868]
[1733237420384,0.15,95554.0,95546.0,0.138868]
[1733237420599,0.209299,95557.0,95536.0,0.138868]
[1733237420866,0.209325,95573.0,95557.0,0.138868]
[1733237420867,6e-05,95573.0,95557.0,0.138868]
[1733237421087,6e-05,95573.0,95557.0,0.24358059]
[1733237421767,6e-05,95573.0,95564.0,0.138868]
[1733237421994,6e-05,95573.0,95525.0,0.257368]
[1733237421995,0.409266,95572.0,95557.0,0.138868]
[1733237422224,0.409266,95572.0,95534.0,0.209347]
[1733237422225,0.2,95572.0,95568.0,0.138868]
[1733237422899,0.2,95572.0,95568.0,0.24358059]
[1733237423362,0.2,95572.0,95571.0,0.138868]
[1733237423581,0.2,95572.0,95571.0,0.24358059]
[1733237424972,0.211229,95589.0,95564.0,0.00059472]
[1733237424973,0.35387057,95581.0,95573.0,0.0055]
[1733237425197,0.209257,95576.0,95573.0,0.0055]
[1733237425403,0.35387057,95581.0,95517.0,0.2]
[1733237425404,0.418594,95558.0,95543.0,0.138868]
[1733237425619,0.209312,95551.0,95543.0,0.138868]
[1733237425831,0.209338,95540.0,95535.0,0.138868]
[1733237426059,0.209338,95540.0,95518.0,0.138868]
[1733237426060,0.209376,95522.0,95518.0,0.138868]
[1733237426265,0.209376,95522.0,95517.0,0.00059577]
[1733237426266,0.15,95519.0,95517.0,0.00059577]
[1733237426464,0.359384,95518.0,95517.0,0.00059577]
[1733237427388,0.15,95528.0,95517.0,0.00059577]
[1733237427639,0.061132,95566.0,95533.0,0.138868]
[1733237427851,0.10471259,95565.0,95541.0,0.138868]
[1733237428078,0.2,95577.0,95545.0,0.138868]
[1733237428300,0.209303,95556.0,95552.0,0.138868]
[1733237428512,0.418605,95556.0,95552.0,0.138868]
[1733237428721,0.10471259,95556.0,95535.0,0.138868]
[1733237428937,0.10471259,95556.0,95540.0,0.138868]
[1733237429146,0.209339,95539.0,95536.0,0.138868]
[1733237429356,0.10471259,95538.0,95514.0,0.138868]
[1733237429563,0.15,95564.0,95532.0,0.138868]
[1733237429732,0.15,95562.0,95542.0,0.138868]
[1733237429944,0.15,95560.0,95524.0,0.138868]
[1733237430146,0.15,95543.0,95514.0,0.00059577]
[1733237430351,0.15,95539.0,95521.0,0.138868]
[1733237430551,0.10471259,95538.0,95515.0,0.138868]
[1733237430814,0.359367,95526.0,95525.0,0.138868]
[1733237431026,0.15,95516.0,95514.0,0.00059577]
[1733237431264,0.46410359,95515.0,95514.0,0.00059577]
[1733237431712,0.359391,95515.0,95514.0,0.00059577]
[1733237433210,0.46410359,95515.0,95514.0,0.00059577]
[1733237433433,0.359391,95515.0,95514.0,0.00059577]
[1733237433707,0.46410359,95515.0,95514.0,0.00231077]
[1733237434127,0.52523559,95515.0,95514.0,7.7e-07]
[1733237434374,0.66410359,95515.0,95514.0,7.7e-07]
[1733237434626,0.46410359,95515.0,95514.0,7.7e-07]
[1733237435744,0.52523559,95515.0,95514.0,7.7e-07]
[1733237436417,0.52523559,95515.0,95398.0,0.209647]
[1733237436418,0.209496,95467.0,95464.0,0.138868]
[1733237436654,0.15,95496.0,95482.0,0.138868]
[1733237436878,0.5476,95587.0,95465.0,0.10471259]
[1733237436879,0.15,95512.0,95477.0,0.138868]
[1733237437087,0.15,95510.0,95477.0,0.138868]
[1733237437301,0.20947,95480.0,95476.0,0.138868]
[1733237437521,0.209408,95507.0,95488.0,0.138868]
[1733237437745,0.25471259,95506.0,95478.0,0.138868]
[1733237437974,0.209413,95505.0,95478.0,0.138868]
[1733237438205,0.209457,95485.0,95478.0,0.138868]
[1733237438429,0.209438,95494.0,95487.0,0.138868]
[1733237438662,0.209446,95490.0,95478.0,0.138868]
[1733237438893,0.00059353,95508.0,95443.0,0.2]
[1733237439105,0.209445,95491.0,95480.0,0.138868]
[1733237439325,0.20947,95479.0,95478.0,0.138868]
[1733237439549,0.15,95504.0,95482.0,0.138868]
[1733237439781,0.20948,95475.0,95470.0,0.138868]
[1733237439993,0.209466,95481.0,95478.0,0.138868]
[1733237440209,0.061132,95521.0,95488.0,0.138868]
[1733237440425,0.209439,95493.0,95488.0,0.138868]
[1733237440638,0.209465,95481.0,95478.0,0.138868]
[1733237440867,0.211132,95514.0,95480.0,0.138868]
[1733237440868,0.209454,95487.0,95480.0,0.138868]
[1733237441087,0.20947,95479.0,95478.0,0.138868]
[1733237441315,0.061132,95512.0,95478.0,0.138868]
[1733237441531,0.15,95510.0,95478.0,0.138868]
[1733237441760,0.15,95503.0,95471.0,0.138868]
[1733237441986,0.209481,95474.0,95473.0,0.138868]
[1733237442207,0.209478,95476.0,95469.0,0.138868]